bitfinex/quotes_ETHUSD_20250807
["timestamp","ask_amount","ask_price","bid_price","bid_amount"]
[1754532490360,0.9396,3677.1,3676.7,4.253]
[1754532490561,0.9396,3677.0,3676.7,4.253]
[1754532490895,0.4956,3676.9,3676.7,4.253]
[1754532491193,0.4956,3676.9,3676.7,6.97282331]
[1754532491395,3.0,3677.5,3676.7,6.97282331]
[1754532491396,0.4956,3677.6,3676.8,0.9018]
[1754532491699,0.6316,3677.6,3677.1,2.71952535]
[1754532491912,0.444,3677.5,3677.1,4.252]
[1754532492083,0.9396,3677.4,3677.1,4.252]
[1754532492410,0.9396,3677.4,3676.9,4.252]
[1754532492561,0.9396,3677.4,3676.8,4.252]
[1754532492562,0.136,3677.2,3676.8,4.252]
[1754532492759,2.71962489,3677.0,3676.8,4.252]
[1754532493064,0.9396,3676.9,3676.8,4.252]
[1754532495100,0.136,3677.0,3676.8,4.252]
[1754532495661,0.4956,3677.5,3676.8,4.252]
[1754532495864,0.4956,3677.5,3676.9,0.136]
[1754532496299,0.4956,3677.5,3676.9,2.85567878]
[1754532497007,0.4956,3677.5,3676.9,0.136]
[1754532497205,1.17517765,3677.5,3676.9,0.136]
[1754532497509,0.4956,3677.4,3676.9,0.136]
[1754532497684,3.39882819,3677.5,3676.9,0.136]
[1754532497869,0.48608357,3677.4,3676.9,0.136]
[1754532498064,0.67957765,3677.5,3676.9,0.136]
[1754532498281,0.444,3677.4,3676.9,0.136]
[1754532498482,0.444,3677.3,3676.9,0.136]
[1754532498895,2.85517852,3677.6,3676.9,2.85566918]
[1754532499095,3.29917852,3677.6,3676.9,2.85566918]
[1754532499605,0.58,3677.6,3676.9,2.85566918]
[1754532499905,4.20108834,3677.6,3676.9,0.136]
[1754532500071,0.4717,3677.5,3676.9,0.136]
[1754532501006,0.4436,3677.4,3676.9,0.136]
[1754532501393,2.71923922,3677.5,3676.9,0.136]
[1754532501587,0.9153,3677.3,3676.9,0.136]
[1754532501993,3.63476841,3677.2,3677.0,4.25]
[1754532502206,0.6077,3677.2,3677.0,4.25]
[1754532502413,0.136,3677.2,3677.0,4.25]
[1754532503195,0.5796,3677.2,3677.0,4.25]
[1754532503519,3.0,3677.6,3677.0,6.96956815]
[1754532503520,0.4436,3677.5,3677.0,6.96956815]
[1754532503678,4.6837027,3677.6,3677.0,4.8494]
[1754532503875,4.6837027,3677.6,3677.1,2.71952941]
[1754532504611,1.6837027,3677.6,3677.1,2.71953441]
[1754532504915,0.001,3677.8,3677.1,0.4634]
[1754532505091,0.137,3677.8,3677.3,0.136]
[1754532505280,0.4717,3677.7,3677.3,0.136]
[1754532505982,3.4436,3677.7,3677.3,0.136]
[1754532506199,0.4717,3677.6,3677.3,0.136]
[1754532506393,0.9153,3677.5,3677.3,0.136]
[1754532506800,0.4436,3677.5,3677.3,0.136]
[1754532506994,0.4717,3677.4,3677.3,0.136]
[1754532508000,0.4436,3677.5,3677.3,0.136]
[1754532508202,0.4717,3677.4,3677.3,0.136]
[1754532509416,0.4436,3677.5,3677.3,0.136]
[1754532509921,0.9153,3677.5,3677.3,0.136]
[1754532510116,0.4717,3677.4,3677.3,0.136]
[1754532510819,0.4436,3677.5,3677.3,0.136]
[1754532511020,0.4717,3677.6,3677.3,2.8553324]
[1754532511687,0.137,3677.8,3677.6,2.71914856]
[1754532512021,0.001,3677.8,3677.7,3.63309073]
[1754532512318,0.001,3677.8,3677.7,3.76909073]
[1754532512858,0.4727,3677.8,3677.7,4.384]
[1754532513122,3.0,3677.7,3677.3,0.136]
[1754532513417,1.59253362,3677.6,3677.3,0.136]
[1754532513785,4.59253362,3677.6,3676.5,2.71994898]
[1754532514134,2.7194506,3677.3,3676.7,4.248]
[1754532514301,0.136,3677.1,3676.7,4.248]
[1754532515034,0.9153,3677.0,3676.7,4.248]
[1754532515201,0.9153,3676.9,3676.7,4.248]
[1754532515531,0.136,3677.1,3676.7,4.248]
[1754532515738,0.136,3677.3,3676.8,3.76969879]
[1754532515936,0.136,3677.3,3676.8,3.31909879]
[1754532516242,0.9153,3677.2,3676.8,2.85569879]
[1754532516540,0.4717,3677.1,3676.8,0.136]
[1754532516744,0.6077,3677.1,3676.8,4.247]
[1754532516949,0.9153,3677.0,3676.6,0.138]
[1754532517102,0.9153,3677.0,3676.6,0.002]
[1754532517103,0.9153,3676.9,3676.6,0.002]
[1754532517306,0.136,3676.8,3676.6,0.002]
[1754532517646,0.36077,3677.1,3676.6,0.002]
[1754532517945,3.0,3677.1,3676.7,0.136]
[1754532518134,0.4436,3676.8,3676.6,0.002]
[1754532518544,0.136,3677.0,3676.6,0.002]
[1754532518845,0.136,3677.0,3676.6,3.18529526]
[1754532519000,0.4717,3676.9,3676.6,0.002]
[1754532519203,0.9153,3676.9,3676.6,0.002]
[1754532519500,0.136,3677.0,3676.7,2.71982938]
[1754532519950,1.0513,3677.0,3676.6,2.72189323]
[1754532520128,0.9153,3676.9,3676.6,2.72189323]
[1754532520644,0.4717,3676.9,3676.6,0.002]
[1754532521042,0.9153,3676.8,3676.6,0.002]
[1754532521432,0.136,3677.0,3676.6,2.72189237]
[1754532521946,0.136,3677.0,3676.7,2.71980725]
[1754532522347,0.136,3677.0,3676.8,2.71974187]
[1754532522546,0.136,3677.0,3676.7,2.71981926]
[1754532522904,0.136,3677.0,3676.9,2.71968234]
[1754532523109,0.001,3677.8,3677.3,2.7193305]
[1754532523411,0.9153,3677.7,3677.2,2.71939313]
[1754532523608,0.9153,3677.6,3677.3,2.71938456]
[1754532524149,0.9153,3677.6,3677.2,2.85545525]
[1754532524350,0.4436,3677.6,3677.2,0.136]
[1754532524523,0.136,3677.4,3676.9,4.246]
[1754532524726,0.9153,3677.3,3676.9,4.246]
[1754532525077,1.0513,3677.2,3676.9,4.246]
[1754532525218,0.9153,3677.1,3676.9,4.246]
[1754532525423,0.9153,3677.0,3676.9,4.246]
[1754532525623,0.9153,3677.0,3676.6,0.138]
[1754532525820,0.9153,3676.9,3676.7,4.245]
[1754532526067,0.4717,3676.8,3676.7,4.245]
[1754532526627,0.4717,3676.8,3676.7,6.96483028]
[1754532527040,0.4436,3676.9,3676.7,6.96483028]
[1754532527251,0.4717,3677.0,3676.7,6.96483028]
[1754532527455,0.4717,3677.0,3676.7,4.245]
[1754532527624,0.4717,3677.0,3676.8,2.7197563]
[1754532527957,1.0513,3677.2,3676.9,2.72167457]
[1754532528260,0.136,3677.2,3677.1,2.71953441]
[1754532528444,0.136,3677.2,3677.1,3.18293441]
[1754532528662,0.136,3677.2,3677.1,3.63353441]
[1754532528875,0.001,3677.8,3677.5,2.71919214]
[1754532529043,0.136,3677.6,3677.3,2.71938322]
[1754532529231,1.23523,3677.8,3677.3,2.71938322]
[1754532529232,0.001,3677.8,3677.7,2.71909073]
[1754532532912,0.469,3677.8,3677.7,2.71909073]
[1754532533070,0.001,3677.8,3677.7,2.71909073]
[1754532534643,0.001,3677.8,3677.7,3.18019073]
[1754532534877,0.001,3677.8,3677.7,4.25267753]
[1754532535670,0.001,3677.8,3677.7,3.79157753]
[1754532535852,0.001,3677.8,3677.7,4.38867753]
[1754532536469,0.001,3677.8,3677.7,4.83517753]
[1754532538577,1e-08,3677.8,3677.7,4.83517753]
[1754532538744,1e-08,3677.9,3677.8,2.7190168]
[1754532538949,1e-08,3677.9,3677.8,7.75812218]
[1754532539380,1e-08,3677.9,3677.8,8.20462218]
[1754532541545,1e-08,3677.9,3677.8,3.51612218]
[1754532541837,1e-08,3677.9,3677.8,7.29602218]
[1754532542492,1e-08,3677.9,3677.8,3.05502218]
[1754532542639,1e-08,3677.9,3677.8,7.29602218]
[1754532543093,0.46830001,3677.9,3677.8,7.29502218]
[1754532543289,1e-08,3677.9,3677.8,7.29502218]
[1754532545391,1e-08,3677.9,3677.8,7.75612218]
[1754532545723,1e-08,3677.9,3677.8,7.29502218]
[1754532546102,1e-08,3677.9,3677.8,7.75612218]
[1754532546736,1e-08,3677.9,3677.8,7.29502218]
[1754532547825,1e-08,3677.9,3677.8,3.05502218]
[1754532548024,1e-08,3677.9,3677.8,7.29502218]
[1754532548705,1e-08,3677.9,3677.8,8.20262218]
[1754532548906,1e-08,3677.9,3677.8,8.33862218]
[1754532549100,1e-08,3677.9,3677.8,8.44756018]
[1754532550193,1e-08,3677.9,3677.8,8.00106018]
[1754532551409,1e-08,3677.9,3677.8,8.00306018]
[1754532551604,1e-08,3677.9,3677.8,8.44956018]
[1754532559137,1e-08,3677.9,3677.8,18.83725492]
[1754532559336,0.001,3678.6,3678.5,2.71849938]
[1754532559337,1e-08,3678.6,3678.5,2.71849938]
[1754532559638,1e-08,3678.6,3678.5,7.09049938]
[1754532560074,1e-08,3678.6,3678.5,7.55879938]
[1754532561636,0.43360001,3678.6,3678.5,7.55879938]
[1754532561851,0.92120001,3678.6,3678.5,7.09049938]
[1754532562541,0.92120001,3678.6,3678.5,7.42650476]
[1754532562945,0.48760001,3678.6,3678.5,7.42650476]
[1754532563133,1e-08,3678.6,3678.5,7.42650476]
[1754532563645,1e-08,3678.6,3678.5,7.29050476]
[1754532563845,1e-08,3678.6,3678.5,7.42650476]
[1754532564152,0.48760001,3678.6,3678.5,7.42650476]
[1754532564357,0.92120001,3678.6,3678.5,7.42550476]
[1754532564568,1e-08,3678.6,3678.5,3.19050476]
[1754532564872,0.92120001,3678.6,3678.5,7.42550476]
[1754532565070,0.92120001,3678.6,3678.5,7.08949938]
[1754532566774,0.92120001,3678.6,3678.5,2.85449938]
[1754532567066,0.92120001,3678.6,3678.5,7.08949938]
[1754532567240,1e-08,3678.6,3678.5,7.08949938]
[1754532569169,1e-08,3678.6,3678.5,7.57709938]
[1754532569382,1e-08,3678.6,3678.5,8.69706868]
[1754532569754,0.48760001,3678.6,3678.5,8.69606868]
[1754532569963,1e-08,3678.6,3678.5,8.69606868]
[1754532572376,1e-08,3678.6,3678.5,9.16896868]
[1754532572776,1e-08,3678.6,3678.5,8.69606868]
[1754532578171,0.48760001,3678.6,3678.5,4.46206868]
[1754532578371,0.92120001,3678.6,3678.5,7.57409938]
[1754532578799,0.92120001,3678.6,3678.5,7.08649938]
[1754532579605,0.48760001,3678.6,3678.5,7.08649938]
[1754532579796,0.92120001,3678.6,3678.5,7.08649938]
[1754532580693,0.92120001,3678.6,3677.8,0.002]
[1754532580899,2.05208948,3678.5,3678.0,2.71880134]
[1754532581084,0.9212,3678.4,3678.1,2.71878293]
[1754532581279,0.9212,3678.4,3678.2,4.231]
[1754532581508,0.9212,3678.3,3678.0,2.71885946]
[1754532581682,0.9212,3678.2,3678.1,4.231]
[1754532582108,0.9212,3678.2,3677.8,0.002]
[1754532582279,1.13088947,3678.1,3677.9,4.231]
[1754532582479,2.05208947,3678.1,3677.8,6.95200569]
[1754532582674,0.9212,3678.0,3677.8,6.95200569]
[1754532582891,0.9212,3677.9,3677.8,4.233]
[1754532583089,0.9212,3677.9,3677.8,0.002]
[1754532583296,0.9212,3677.9,3677.8,4.233]
[1754532583606,0.9212,3677.9,3677.8,0.002]
[1754532583806,0.9212,3677.9,3677.8,4.233]
[1754532584510,0.9212,3677.9,3677.8,6.9520168]
[1754532585102,0.9212,3677.9,3677.8,4.233]
[1754532586010,0.9212,3677.9,3677.8,4.232]
[1754532586410,0.9212,3677.9,3677.8,0.002]
[1754532586586,0.9212,3677.9,3677.8,4.232]
[1754532586791,1.28519357,3677.9,3677.8,4.232]
[1754532586987,1.28519357,3677.9,3677.8,0.002]
[1754532586988,4.00413644,3677.9,3677.8,0.002]
[1754532587189,4.00413644,3677.9,3677.0,0.002]
[1754532587190,5.71953441,3677.1,3677.0,0.002]
[1754532587413,5.71953441,3677.1,3676.3,0.002]
[1754532587616,10.38769474,3676.7,3676.3,0.002]
[1754532587782,1.3107512,3676.6,3676.3,0.002]
[1754532588116,2.2319512,3676.6,3676.3,0.002]
[1754532588328,0.9212,3676.5,3676.3,0.002]
[1754532588744,0.9212,3676.4,3676.3,0.002]
[1754532588901,0.9212,3676.4,3676.3,4.232]
[1754532589400,0.9212,3676.4,3676.3,0.002]
[1754532589603,0.9212,3676.4,3676.3,4.232]
[1754532590555,0.9212,3676.4,3676.3,6.95212621]
[1754532591354,0.9212,3676.4,3676.3,4.232]
[1754532592437,0.9212,3676.4,3676.3,6.95212621]
[1754532593315,0.136,3676.6,3676.3,4.232]
[1754532593513,0.488,3676.7,3676.4,2.72005222]
[1754532593729,0.488,3676.6,3676.5,4.231]
[1754532593927,0.488,3676.6,3676.5,6.95097824]
[1754532595062,0.4281,3677.3,3676.9,2.71967129]
[1754532595217,0.136,3677.0,3676.9,6.95067129]
[1754532595417,1.0521,3677.0,3676.9,6.95067129]
[1754532595958,1.0521,3677.0,3676.9,4.231]
[1754532598069,1.0521,3677.0,3676.9,6.95068234]
[1754532598586,1.0521,3677.0,3676.9,4.231]
[1754532600099,0.136,3677.0,3676.9,6.95068234]
[1754532600295,0.136,3677.4,3676.9,5.78704269]
[1754532600497,0.9161,3677.3,3676.9,4.367]
[1754532600653,0.9161,3677.2,3676.9,4.367]
[1754532600853,0.9161,3677.1,3677.0,2.71960087]
[1754532601399,0.9161,3677.1,3677.0,4.23]
[1754532603081,0.9161,3677.1,3677.0,6.94960837]
[1754532603319,0.136,3677.2,3677.0,6.94960253]
[1754532603505,0.5641,3677.2,3677.0,4.23]
[1754532603700,0.488,3677.1,3677.0,4.23]
[1754532604302,0.9161,3677.1,3677.0,6.94960837]
[1754532604925,0.136,3677.2,3677.0,4.23]
[1754532605125,0.136,3677.2,3677.1,2.71953441]
[1754532605639,0.624,3677.2,3677.1,2.71953441]
[1754532605838,0.624,3677.2,3677.0,6.94959441]
[1754532606703,0.624,3677.2,3677.1,2.71953441]
[1754532607116,0.488,3677.8,3677.2,2.71946045]
[1754532607340,1.30261,3677.8,3677.4,2.71926844]
[1754532607549,0.9161,3677.7,3677.4,2.71926844]
[1754532607746,0.81461,3677.8,3677.5,2.71916799]
[1754532607942,0.489,3677.9,3677.3,2.7193864]
[1754532608147,0.489,3677.9,3676.9,0.136]
[1754532608148,0.001,3677.9,3677.7,2.71904079]
[1754532608343,0.001,3677.9,3677.8,2.7190168]
[1754532608951,0.001,3677.9,3677.8,6.9470168]
[1754532609317,0.001,3677.9,3677.8,7.4000168]
[1754532609857,0.001,3677.9,3677.8,6.9470168]
[1754532613137,0.001,3677.9,3677.8,7.4000168]
[1754532613858,0.001,3677.9,3677.8,6.9470168]
[1754532614358,0.001,3677.9,3677.6,2.71914354]
[1754532614573,0.9161,3677.8,3677.6,4.227]
[1754532614872,1.0521,3677.7,3677.6,4.227]
[1754532615639,0.136,3677.7,3677.6,6.94616467]
[1754532615844,0.001,3677.9,3677.8,2.7190168]
[1754532616151,0.001,3677.9,3677.8,6.9450168]
[1754532616352,10.88166285,3677.9,3676.9,1.270271]
[1754532616680,1.0521,3677.8,3677.5,2.71923102]
[1754532616842,0.136,3677.8,3677.5,6.94523102]
[1754532617044,0.9161,3677.7,3677.5,6.94523102]
[1754532617239,0.488,3677.6,3677.3,0.136]
[1754532617457,11.30876285,3677.6,3677.3,4.362]
[1754532617780,0.9161,3677.5,3677.3,7.0813235]
[1754532617979,0.9161,3677.5,3677.4,2.71931255]
[1754532618676,0.9161,3677.5,3677.3,4.362]
[1754532618879,0.9161,3677.5,3677.3,7.0813799]
[1754532619184,0.9161,3677.5,3677.4,2.71931255]
[1754532620088,2.06057629,3677.5,3677.3,0.136]
[1754532620375,0.4676,3677.4,3677.3,4.362]
[1754532620566,0.9088,3677.4,3677.1,4.226]
[1754532620770,0.4412,3677.3,3677.1,4.226]
[1754532620940,0.4676,3677.3,3677.1,4.226]
[1754532621141,0.136,3677.4,3677.1,4.226]
[1754532621692,0.136,3677.4,3677.3,2.7193865]
[1754532623590,0.136,3677.4,3677.2,2.71943912]
[1754532623765,0.9088,3677.3,3677.1,4.226]
[1754532623966,0.4676,3677.2,3677.1,4.226]
[1754532624269,0.4676,3677.2,3677.1,6.94553441]
[1754532624575,0.4412,3677.3,3677.1,4.226]
[1754532624775,0.9088,3677.3,3677.1,4.226]
[1754532625178,0.4676,3677.3,3677.2,2.71946045]
[1754532625800,0.136,3677.4,3677.3,2.7193865]
[1754532626391,0.136,3677.4,3677.2,2.71945686]
[1754532626392,0.6036,3677.4,3677.2,2.71945686]
[1754532626702,0.136,3677.4,3677.3,2.7193865]
[1754532627189,0.6036,3677.4,3677.3,2.7193865]
[1754532627494,0.136,3677.4,3677.3,2.7193865]
[1754532629593,0.136,3677.4,3677.3,6.9433865]
[1754532631457,0.001,3677.9,3677.8,2.7190168]
[1754532631791,0.001,3677.9,3677.8,3.1817168]
[1754532632396,0.001,3677.9,3677.8,4.68609334]
[1754532632982,0.001,3677.9,3677.8,4.82209334]
[1754532635101,0.001,3677.9,3677.8,4.38719334]
[1754532635309,0.001,3677.9,3677.8,3.3177168]
[1754532636370,0.001,3677.9,3677.8,2.8550168]
[1754532637199,0.001,3677.9,3677.8,3.3177168]
[1754532637499,0.001,3677.9,3677.8,3.7526168]
[1754532640069,0.001,3677.9,3677.8,3.3177168]
[1754532640280,0.001,3677.9,3677.8,2.8550168]
[1754532640825,0.001,3677.9,3677.8,3.98485334]
[1754532641002,0.001,3677.9,3677.8,7.88245334]
[1754532641305,0.001,3677.9,3677.8,8.48605334]
[1754532641677,0.001,3677.9,3677.8,5.48605334]
[1754532642000,0.001,3677.9,3677.8,5.05115334]
[1754532642192,0.001,3677.9,3677.8,3.4586168]
[1754532642795,0.001,3677.9,3677.8,3.9213168]
[1754532643102,0.001,3677.9,3677.8,4.3562168]
[1754532643316,0.001,3677.9,3677.8,3.4586168]
[1754532643474,1e-08,3677.9,3677.8,4.3562168]
[1754532643802,1e-08,3677.9,3677.8,5.48605334]
[1754532645102,1e-08,3677.9,3677.8,4.58845334]
[1754532645301,1e-08,3677.9,3677.8,8.80845334]
[1754532645483,1e-08,3677.9,3677.8,7.6786168]
[1754532647314,1e-08,3677.9,3677.8,7.0740168]
[1754532647484,0.46760001,3677.9,3677.8,2.8550168]
[1754532647682,0.90880001,3677.9,3677.8,7.0740168]
[1754532647999,0.46760001,3677.9,3677.8,2.8550168]
[1754532648192,0.90880001,3677.9,3677.8,7.0740168]
[1754532648982,1e-08,3677.9,3677.8,7.0740168]
[1754532649713,1e-08,3677.9,3677.8,8.56289334]
[1754532650099,1e-08,3677.9,3677.8,8.10019334]
[1754532652230,1e-08,3677.9,3677.8,8.56609334]
[1754532653308,1e-08,3677.9,3677.8,8.91729434]
[1754532657220,1e-08,3677.9,3677.8,8.91929434]
[1754532658358,0.91560001,3677.9,3677.8,4.70029434]
[1754532658544,0.91560001,3677.9,3677.8,7.8911178]
[1754532658703,0.91560001,3677.9,3677.8,3.6741178]
[1754532658904,0.91560001,3677.9,3677.8,7.8901178]
[1754532659117,0.91560001,3677.9,3677.8,7.0730168]
[1754532660151,1e-08,3677.9,3677.8,7.0730168]
[1754532660836,0.46150001,3677.9,3677.8,7.5345168]
[1754532661154,0.91560001,3677.9,3677.8,4.218]
[1754532661356,2.0600263,3677.9,3677.8,0.002]
[1754532661518,2.1960263,3677.9,3677.8,0.002]
[1754532662253,1.05160001,3677.9,3677.8,0.002]
[1754532662458,0.46150001,3677.9,3677.8,0.002]
[1754532662763,0.91560001,3677.9,3677.8,0.002]
[1754532665834,1.05160001,3677.9,3677.8,0.002]
[1754532666154,11.44426286,3677.9,3677.8,0.002]
[1754532666352,12.86056488,3677.9,3677.8,0.002]
[1754532669158,15.86056488,3677.9,3677.8,0.002]
[1754532670557,5.46790203,3677.9,3677.8,0.002]
[1754532670724,4.05160001,3677.9,3677.8,0.002]
[1754532673466,0.13600001,3677.9,3677.8,2.7210168]
[1754532673760,1e-08,3677.9,3677.8,7.4009168]
[1754532674562,1e-08,3677.9,3677.8,7.8681168]
[1754532674779,1e-08,3677.9,3677.8,9.10899317]
[1754532674962,1e-08,3677.9,3677.8,9.21793717]
[1754532681850,1e-08,3677.9,3677.8,8.75073717]
[1754532682176,0.88760001,3677.9,3677.8,4.213]
[1754532682377,0.45830001,3677.9,3677.8,6.9320168]
[1754532682541,0.88760001,3677.9,3677.8,6.9320168]
[1754532683079,0.88760001,3677.9,3677.8,4.213]
[1754532683395,0.88760001,3677.9,3677.8,6.9320168]
[1754532683749,0.45830001,3677.9,3677.8,6.9320168]
[1754532683945,0.88760001,3677.9,3677.8,6.9320168]
[1754532685279,0.88760001,3677.9,3677.8,4.213]
[1754532686352,0.88760001,3677.9,3677.8,6.9320168]
[1754532687879,1e-08,3677.9,3677.8,6.9320168]
[1754532688183,1e-08,3677.9,3677.8,8.96483399]
[1754532688762,1e-08,3677.9,3677.8,9.07377499]
[1754532696006,1e-08,3677.9,3677.8,12.07377499]
[1754532697570,1e-08,3677.9,3677.8,8.15567499]
[1754532697777,1e-08,3677.9,3677.8,8.61267499]
[1754532698700,1e-08,3677.9,3677.8,3.94467499]
[1754532699015,1e-08,3677.9,3677.8,8.15267499]
[1754532699397,1e-08,3677.9,3677.8,8.60967499]
[1754532700974,1e-08,3677.9,3677.8,9.07077499]
[1754532704779,1e-08,3677.9,3677.8,8.15267499]
[1754532705123,1e-08,3677.9,3677.8,3.94467499]
[1754532705430,1e-08,3677.9,3677.8,8.15067499]
[1754532707109,1e-08,3677.9,3677.8,3.94467499]
[1754532707614,1e-08,3677.9,3677.8,8.14967499]
[1754532708233,1e-08,3677.9,3677.8,8.60667499]
[1754532709716,1e-08,3677.9,3677.8,8.14967499]
[1754532710604,1e-08,3677.9,3677.8,8.61737499]
[1754532711823,1e-08,3677.9,3677.8,8.14967499]
[1754532711984,1e-08,3677.9,3677.8,9.06627499]
[1754532712389,1e-08,3677.9,3677.8,8.61737499]
[1754532716129,0.88870001,3677.9,3677.8,7.1689578]
[1754532716338,0.88870001,3677.9,3677.8,2.9659578]
[1754532716542,0.88870001,3677.9,3677.8,7.0329578]
[1754532716704,0.88870001,3677.9,3677.8,0.002]
[1754532716705,11.28136286,3677.9,3677.8,0.002]
[1754532716907,12.42309915,3677.9,3677.8,4.205]
[1754532718298,12.42309915,3677.9,3677.8,0.002]
[1754532718498,12.42309915,3677.9,3677.8,4.205]
[1754532718893,12.55909915,3677.9,3677.8,4.205]
[1754532720411,12.55909915,3677.9,3677.8,0.002]
[1754532720611,12.55909915,3677.9,3677.8,4.205]
[1754532722951,12.55909915,3677.9,3677.8,4.204]
[1754532725525,12.55909915,3677.9,3677.8,6.9230168]
[1754532725710,12.55909915,3677.9,3677.8,4.204]
[1754532726510,1.02470001,3677.9,3677.8,6.9230168]
[1754532727553,1.02470001,3677.9,3677.8,4.204]
[1754532728050,11.41736286,3677.9,3677.8,4.204]
[1754532728248,1.02470001,3677.9,3677.8,4.204]
[1754532729267,1.02470001,3677.9,3677.8,6.9230168]
[1754532729268,1e-08,3677.9,3677.8,6.9230168]
[1754532730323,0.45870001,3677.9,3677.8,6.9230168]
[1754532730545,0.88870001,3677.9,3677.8,6.9230168]
[1754532735836,1e-08,3677.9,3677.8,6.9230168]
[1754532737091,1e-08,3677.9,3677.8,7.3907168]
[1754532737253,1e-08,3677.9,3677.8,7.99249213]
[1754532737441,1e-08,3677.9,3677.8,9.04509213]
[1754532738140,1e-08,3677.9,3677.8,9.47509213]
[1754532740043,1e-08,3677.9,3677.8,9.03939213]
[1754532740674,1e-08,3677.9,3677.8,8.55849213]
[1754532742997,0.90620001,3677.9,3677.8,7.4850168]
[1754532743298,0.90620001,3677.9,3677.8,7.3490168]
[1754532743462,0.90620001,3677.9,3677.8,6.9190168]
[1754532744456,1e-08,3677.9,3677.8,6.9190168]
[1754532744644,1e-08,3677.9,3677.8,7.94452213]
[1754532745140,1e-08,3677.9,3677.8,8.42542213]
[1754532745341,1e-08,3677.9,3677.8,7.94452213]
[1754532745574,1e-08,3677.9,3677.8,8.87252213]
[1754532746776,1e-08,3677.9,3677.8,8.42542213]
[1754532747959,1e-08,3677.9,3677.8,8.88752213]
[1754532748282,1e-08,3677.9,3677.8,9.33462213]
[1754532749083,1e-08,3677.9,3677.8,8.88752213]
[1754532754696,1e-08,3677.9,3677.8,8.40662213]
[1754532757899,0.90620001,3677.9,3677.8,7.3811168]
[1754532758295,0.90620001,3677.9,3677.8,6.9190168]
[1754532758607,0.90620001,3677.9,3677.8,2.7210168]
[1754532758807,0.90620001,3677.9,3677.8,6.9150168]
[1754532759303,0.90620001,3677.9,3677.8,2.7210168]
[1754532759523,0.90620001,3677.9,3677.8,6.9150168]
[1754532760302,1e-08,3677.9,3677.8,6.9150168]
[1754532761034,1e-08,3677.9,3677.8,7.5319168]
[1754532761231,1e-08,3677.9,3677.8,9.55313174]
[1754532761523,1e-08,3677.9,3677.8,9.10603174]
[1754532761734,1e-08,3677.9,3677.8,8.62513174]
[1754532762027,1e-08,3677.9,3677.8,9.55313174]
[1754532762715,1e-08,3677.9,3677.8,9.10603174]
[1754532763320,1e-08,3677.9,3677.8,8.62513174]
[1754532763511,1e-08,3677.9,3677.8,9.55313174]
[1754532764025,1e-08,3677.9,3677.8,9.10603174]
[1754532767195,1e-08,3677.9,3677.8,8.62513174]
[1754532767893,0.46110001,3677.9,3677.8,8.62513174]
[1754532768431,1e-08,3677.9,3677.8,8.62513174]
[1754532768733,0.46110001,3677.9,3677.8,8.62513174]
[1754532768899,1e-08,3677.9,3677.8,8.62513174]
[1754532769661,0.90620001,3677.9,3677.8,8.62513174]
[1754532769797,0.90620001,3677.9,3677.8,7.6481168]
[1754532769997,0.90620001,3677.9,3677.8,7.0480168]
[1754532770822,0.90620001,3677.9,3677.8,2.8570168]
[1754532771026,0.90620001,3677.9,3677.8,7.0480168]
[1754532771332,0.90620001,3677.9,3677.8,6.9120168]
[1754532773144,0.90620001,3677.9,3677.8,4.193]
[1754532773441,0.90620001,3677.9,3677.8,6.9120168]
[1754532777163,0.90620001,3677.9,3677.8,0.002]
[1754532777360,0.90620001,3677.9,3677.8,4.192]
[1754532777561,2.0360863,3677.9,3677.8,4.192]
[1754532778463,2.0360863,3677.9,3677.8,0.002]
[1754532778626,17.16874915,3677.9,3677.4,0.002]
[1754532778962,3.0,3677.5,3677.4,0.002]
[1754532779127,4.43383629,3677.5,3677.4,0.002]
[1754532779323,4.92743629,3677.5,3677.4,0.002]
[1754532779562,8.0987749,3677.5,3677.4,0.002]
[1754532781664,12.2877749,3677.5,3677.4,0.002]
[1754532783328,1.43383629,3677.5,3677.4,0.002]
[1754532783529,0.4936,3677.7,3677.4,0.002]
[1754532784063,4.1298863,3677.9,3677.4,0.002]
[1754532784391,3.0,3677.5,3677.4,0.002]
[1754532784670,9.90823861,3677.5,3677.4,0.002]
[1754532784834,10.85393861,3677.5,3677.4,0.002]
[1754532785036,13.25050928,3677.5,3677.4,0.002]
[1754532786572,10.53127067,3677.5,3677.4,0.002]
[1754532787838,5.89017067,3677.5,3677.4,0.002]
[1754532788048,10.53127067,3677.5,3677.4,0.002]
[1754532788676,10.66727067,3677.5,3677.4,0.002]
[1754532789144,5.53257067,3677.5,3677.4,0.002]
[1754532789326,6.02617067,3677.5,3677.4,0.002]
[1754532790145,6.47827067,3677.5,3677.4,0.002]
[1754532791962,5.53257067,3677.5,3677.4,0.002]
[1754532792144,6.47827067,3677.5,3677.4,0.002]
[1754532793835,0.136,3677.5,3677.4,2.72131255]
[1754532794447,0.136,3677.5,3677.4,0.002]
[1754532794887,1.0817,3677.5,3677.4,0.002]
[1754532795480,11.47436285,3677.5,3677.4,0.002]
[1754532795674,13.6125072,3677.5,3677.4,0.002]
[1754532796660,13.1604072,3677.5,3677.4,0.002]
[1754532797803,13.6125072,3677.5,3677.4,0.002]
[1754532800288,13.1604072,3677.5,3677.4,0.002]
[1754532800591,12.6668072,3677.5,3677.4,0.002]
[1754532800992,0.136,3677.5,3677.4,0.4803]
[1754532801171,0.13600001,3677.9,3677.4,1.0635]
[1754532801371,0.13600001,3677.9,3677.7,2.71908559]
[1754532801571,0.13600001,3677.9,3677.8,3.1973168]
[1754532802421,1e-08,3677.9,3677.8,3.6445168]
[1754532803477,1e-08,3677.9,3677.8,0.9255]
[1754532803890,1e-08,3677.9,3677.8,0.4783]